bitfinex-derivatives/quotes_SOLF0:USTF0_20260316
["timestamp","ask_amount","ask_price","bid_price","bid_amount"]
[1773675298735,3.8553304,93.859,93.8,3.62746]
[1773675298935,3.62746,93.87,93.811,3.15844667]
[1773675299634,7.4827904,93.87,93.811,3.15844667]
[1773675300225,3.62746,93.88,93.821,3.26805139]
[1773675300429,3.8553304,93.899,93.84,3.62746]
[1773675300630,3.8553304,93.879,93.81,6.89418445]
[1773675300934,3.8553304,93.879,93.83,3.62746]
[1773675301136,3.8553304,93.899,93.85,3.62746]
[1773675301630,3.8553304,93.899,93.841,3.26672445]
[1773675303431,3.8553304,93.899,93.83,3.62746]
[1773675303739,3.8553304,93.899,93.83,6.90696808]
[1773675304234,3.8553304,93.899,93.831,3.28353958]
[1773675304434,3.8553304,93.899,93.84,3.62746]
[1773675305130,3.8553304,93.899,93.841,3.28227256]
[1773675305435,3.8553304,93.899,93.85,6.90762906]
[1773675305637,3.8553304,93.899,93.85,3.28016906]
[1773675306927,3.8553304,93.915,93.851,3.26409303]
[1773675307327,3.8553304,93.915,93.86,3.62746]
[1773675308941,3.8553304,93.915,93.851,3.26409303]
[1773675311544,3.8553304,93.915,93.83,3.26076641]
[1773675311940,3.8553304,93.915,93.83,8.63852893]
[1773675312136,3.8553304,93.915,93.831,3.26076641]
[1773675312341,8.05200491,93.955,93.823,33.52]
[1773675312342,3.8553304,93.932,93.851,3.25914737]
[1773675314042,3.8553304,93.919,93.828,3.2572726]
[1773675314745,3.8553304,93.919,93.831,3.30464296]
[1773675315640,3.8553304,93.919,93.833,3.3072685]
[1773675317247,3.8553304,93.919,93.835,3.31902597]
[1773675317549,3.8553304,93.919,93.836,3.31793564]
[1773675317849,3.8553304,93.919,93.837,3.31793564]
[1773675318449,3.8553304,93.919,93.84,3.31970132]
[1773675318752,3.8553304,93.919,93.834,33.52]
[1773675318753,3.8553304,93.919,93.851,3.31970132]
[1773675319545,3.8553304,93.959,93.853,3.3158693]
[1773675322053,3.8553304,93.959,93.871,3.3064357]
[1773675322255,3.8553304,93.959,93.873,3.3064357]
[1773675330850,3.80812446,93.949,93.89,6.88430798]
[1773675331159,3.80812446,93.949,93.891,3.25873701]
[1773675334951,3.80812446,93.929,93.872,33.52]
[1773675335159,3.80812446,93.919,93.869,33.52]
[1773675337466,3.80812446,93.949,93.881,3.26308753]
[1773675338060,3.80812446,93.939,93.881,3.26308753]
[1773675338762,3.80812446,93.939,93.882,33.52]
[1773675339164,3.80812446,93.939,93.89,3.62557097]
[1773675340365,3.80812446,93.939,93.883,3.26174699]
[1773675344767,3.80812446,93.919,93.865,33.52]
[1773675345069,3.80812446,93.909,93.858,3.28367986]
[1773675346172,3.80812446,93.909,93.848,33.52]
[1773675346376,3.80812446,93.909,93.849,3.27524969]
[1773675346572,3.80812446,93.909,93.851,3.27524969]
[1773675347779,3.80812446,93.899,93.853,3.28028325]
[1773675349168,3.80812446,93.919,93.86,3.62557097]
[1773675349970,3.80812446,93.919,93.87,6.905586]
[1773675351572,3.80812446,93.919,93.871,3.25088405]
[1773675354380,3.62557097,93.93,93.871,3.25088405]
[1773675354879,3.56147663,93.929,93.871,3.25088405]
[1773675357377,3.62557097,93.88,93.821,3.4507812]
[1773675357674,19.157,93.943,93.821,3.4507812]
[1773675357675,3.56147663,93.884,93.821,3.4507812]
[1773675357881,33.52,93.939,93.818,33.52]
[1773675357882,3.56147663,93.899,93.841,3.4507812]
[1773675358076,3.56147663,93.899,93.85,3.62557097]
[1773675359182,3.56147663,93.899,93.851,3.39226845]
[1773675359982,3.56147663,93.899,93.852,33.52]
[1773675362381,3.56147663,93.899,93.851,3.39226845]
[1773675363584,3.62557097,93.9,93.851,3.39226845]
[1773675363778,3.56147663,93.902,93.851,3.39226845]
[1773675365377,3.56147663,93.902,93.848,33.52]
[1773675365583,3.56147663,93.899,93.848,33.52]
[1773675367085,3.56147663,93.915,93.86,3.62557097]
[1773675367286,3.56147663,93.915,93.851,3.31350167]
[1773675367782,3.56147663,93.909,93.85,3.62557097]
[1773675367981,3.56147663,93.909,93.848,33.52]
[1773675368686,3.56147663,93.889,93.848,33.52]
[1773675368887,3.56147663,93.889,93.83,3.62557097]
[1773675369089,3.56147663,93.889,93.836,33.52]
[1773675369389,3.56147663,93.889,93.837,3.44401769]
[1773675370988,3.56147663,93.889,93.836,33.52]
[1773675371388,3.62557097,93.9,93.841,3.45048565]
[1773675371588,3.62557097,93.9,93.843,3.45048565]
[1773675371790,3.56147663,93.899,93.843,3.45048565]
[1773675374587,3.56147663,93.915,93.86,3.62557097]
[1773675376286,3.56147663,93.915,93.861,3.3988437]
[1773675376784,3.56147663,93.96,93.91,3.62557097]
[1773675377088,3.56147663,93.976,93.912,3.42735318]
[1773675377583,3.56147663,93.976,93.93,3.62557097]
[1773675377784,3.56147663,93.999,93.94,3.62557097]
[1773675379091,3.56147663,93.999,93.95,3.62557097]
[1773675379589,3.56147663,94.035,93.98,3.62557097]
[1773675379786,3.56147663,94.035,93.99,3.62557097]
[1773675380296,3.56147663,94.053,94.0,3.62557097]
[1773675380692,3.62557097,94.05,93.994,3.58846793]
[1773675380990,3.62557097,94.04,93.98,7.2140389]
[1773675381194,3.56147663,94.049,93.99,3.62557097]
[1773675381782,3.56147663,94.049,94.0,3.62557097]
[1773675381987,3.56147663,94.073,94.02,3.62557097]
[1773675382389,3.56147663,94.073,94.002,33.52]
[1773675382390,3.88761307,94.059,94.0,3.62557097]
[1773675382593,1.85032075,94.125,93.99,3.50139184]
[1773675382594,3.88761307,94.049,93.99,3.50139184]
[1773675382797,3.88761307,94.049,93.99,7.12696281]
[1773675382993,3.88761307,94.067,94.0,7.12696281]
[1773675383289,3.88761307,94.039,93.982,3.50139184]
[1773675383594,3.88761307,94.039,93.99,3.62557097]
[1773675384193,3.62557097,94.05,93.99,3.62557097]
[1773675384393,3.88761307,94.049,93.99,3.62557097]
[1773675384598,3.88761307,94.019,93.962,3.40110178]
[1773675384791,106.233,94.119,93.897,19.166]
[1773675384792,3.88761307,94.009,93.95,3.62097423]
[1773675384992,3.88761307,94.009,93.943,3.40110178]
[1773675385191,3.88761307,94.009,93.95,3.62097423]
[1773675385585,3.62097423,94.0,93.943,3.40110178]
[1773675385785,3.88761307,94.009,93.95,3.62097423]
[1773675386199,3.88761307,94.009,93.951,3.3624503]
[1773675387099,3.88761307,94.034,93.951,3.3624503]
[1773675388395,3.88761307,94.031,93.951,3.3624503]
[1773675389198,2.127,94.015,93.951,3.3624503]
[1773675389495,3.88761307,94.014,93.951,3.3624503]
[1773675389695,3.88761307,94.014,93.931,3.45531197]
[1773675389998,3.88761307,93.997,93.913,3.45531197]
[1773675396207,3.88761307,93.997,93.907,33.5]
[1773675396605,3.88761307,93.979,93.888,33.5]
[1773675396805,3.88761307,93.959,93.879,33.5]
[1773675397106,3.88761307,93.959,93.879,36.91239865]
[1773675397309,3.88761307,93.959,93.88,3.41239865]
[1773675398804,3.88761307,93.959,93.862,3.41331768]
[1773675399604,33.5,93.982,93.862,3.41331768]
[1773675399605,3.88761307,93.939,93.862,3.41331768]
[1773675402201,3.88761307,93.939,93.847,33.52]
[1773675402408,3.88761307,93.939,93.848,3.41278812]
[1773675403206,8.62128008,93.9,93.81,3.40123354]
[1773675403408,3.88761307,93.899,93.81,3.40123354]
[1773675406909,3.88761307,93.879,93.81,3.40123354]
[1773675413919,3.88761307,93.879,93.786,3.40683699]
[1773675414314,3.64293932,93.869,93.786,3.40683699]
[1773675419120,3.64293932,93.869,93.788,3.5633148]
[1773675422323,3.64293932,93.889,93.795,3.54832456]
[1773675422524,3.64293932,93.889,93.797,3.54832456]
[1773675422723,3.64293932,93.889,93.799,3.54832456]
[1773675423526,3.64293932,93.869,93.799,3.54832456]
[1773675426725,33.54,93.899,93.78,8.62128008]
[1773675426726,3.64293932,93.909,93.801,3.52132833]
[1773675427325,3.64293932,93.889,93.801,3.52132833]
[1773675432730,3.64293932,93.887,93.801,3.52132833]
[1773675434234,3.64293932,93.869,93.801,3.52132833]
[1773675434531,3.64293932,93.869,93.772,3.48916609]
[1773675434738,3.64293932,93.869,93.747,1.85451145]
[1773675434739,3.64293932,93.849,93.755,3.48916609]
[1773675434940,3.64293932,93.829,93.755,3.48916609]
[1773675447243,3.59670283,93.86,93.771,3.41653222]
[1773675447541,3.59670283,93.889,93.773,3.41502917]
[1773675448739,3.63274103,93.86,93.801,3.46955053]
[1773675449343,3.59670283,93.866,93.801,3.46955053]
[1773675449540,3.59670283,93.866,93.811,3.42092618]
[1773675450236,7.97591921,93.902,93.821,3.42092618]
[1773675450237,3.59670283,93.882,93.821,3.42092618]
[1773675450540,3.59670283,93.879,93.821,3.42092618]
[1773675450937,3.59670283,93.879,93.791,3.42113644]
[1773675456052,7.97591921,93.897,93.791,3.42113644]
[1773675456250,3.59670283,93.891,93.811,3.3760985]
[1773675457253,3.59670283,93.919,93.811,3.3760985]
[1773675457653,3.59670283,93.919,93.81,8.64722867]
[1773675457654,3.59670283,93.919,93.813,3.42796233]
[1773675457845,3.59670283,93.919,93.831,3.42796233]
[1773675472455,3.59670283,93.919,93.814,3.52844788]
[1773675472762,3.58016452,93.889,93.814,3.52844788]
[1773675478963,3.76693203,93.909,93.814,3.52844788]
[1773675484469,3.76693203,93.925,93.831,3.48597412]
[1773675484674,3.76693203,93.925,93.833,3.48597412]
[1773675486169,3.76693203,93.925,93.832,52.7]
[1773675486170,3.76693203,93.925,93.838,3.50546863]
[1773675486374,3.76693203,93.925,93.84,3.50546863]
[1773675487573,3.76693203,93.925,93.842,3.55777953]
[1773675488178,3.76693203,93.925,93.844,3.55777953]
[1773675494683,3.76693203,93.925,93.817,19.183]
[1773675494684,3.76693203,93.925,93.829,3.57277918]
[1773675494885,3.76693203,93.923,93.829,3.57277918]
[1773675495385,3.76693203,93.922,93.829,3.57277918]
[1773675496183,3.76693203,93.909,93.81,3.5692324]
[1773675496378,3.76693203,93.889,93.793,3.5692324]
[1773675496579,8.64722867,93.89,93.793,3.5692324]
[1773675496580,3.76693203,93.887,93.793,3.5692324]
[1773675496780,3.76693203,93.886,93.793,3.5692324]
[1773675496981,3.76693203,93.869,93.793,3.5692324]
[1773675499190,19.167,93.895,93.713,31.95]
[1773675499191,3.76693203,93.849,93.762,3.6258533]
[1773675501489,3.76693203,93.809,93.738,3.6593677]
[1773675504890,3.55362146,93.829,93.74,3.61475104]
[1773675505402,3.55362146,93.829,93.741,3.61475104]
[1773675505700,3.55362146,93.829,93.743,3.61475104]
[1773675511700,8.65700123,93.81,93.743,3.61475104]
[1773675511902,3.55362146,93.809,93.727,3.555054]
[1773675512102,3.55362146,93.809,93.672,178.0]
[1773675512103,3.55362146,93.789,93.709,3.555054]
[1773675514300,3.55362146,93.789,93.694,3.55820394]
[1773675516395,3.55362146,93.789,93.696,3.58197075]
[1773675518004,3.55362146,93.769,93.696,3.58197075]
[1773675518202,3.55362146,93.769,93.693,1.85603465]
[1773675518408,3.55362146,93.749,93.673,3.56769015]
[1773675521311,3.55362146,93.749,93.657,3.54374712]
[1773675521509,3.55362146,93.729,93.657,3.54374712]
[1773675522402,3.55362146,93.746,93.657,3.54374712]
[1773675522602,3.55362146,93.746,93.659,3.50274226]
[1773675522804,3.55362146,93.739,93.659,3.50274226]
[1773675527713,3.55362146,93.739,93.653,1.85688635]
[1773675527714,3.55362146,93.773,93.681,3.4122907]
[1773675527913,3.55362146,93.773,93.683,3.4122907]
[1773675528412,3.55362146,93.773,93.685,3.4122907]
[1773675531512,3.55362146,93.739,93.662,3.40445657]
[1773675537219,3.82872069,93.756,93.662,3.40445657]
[1773675538118,3.82872069,93.756,93.681,3.51432812]
[1773675541721,3.82872069,93.756,93.665,3.58272834]
[1773675543126,3.82872069,93.756,93.671,3.58272834]
[1773675544020,3.82872069,93.756,93.672,33.54]
[1773675544324,3.82872069,93.756,93.673,3.58272834]
[1773675545021,8.03074628,93.789,93.675,3.58272834]
[1773675545022,3.82872069,93.789,93.675,3.58272834]
[1773675545219,3.82872069,93.789,93.691,3.58272834]
[1773675545421,3.82872069,93.789,93.693,3.58272834]
[1773675547530,3.82872069,93.789,93.711,3.58272834]
[1773675547726,3.82872069,93.789,93.713,3.58272834]
[1773675548831,3.82872069,93.789,93.715,3.58272834]
[1773675549628,3.82872069,93.806,93.719,3.58272834]
[1773675549923,3.82872069,93.806,93.721,3.58272834]
[1773675550228,3.82872069,93.806,93.731,3.58272834]
[1773675553327,3.82872069,93.806,93.714,3.58272834]
[1773675554724,3.82872069,93.806,93.69,8.65700123]
[1773675554725,3.82872069,93.789,93.68,8.65700123]
[1773675554926,3.82872069,93.789,93.692,3.58272834]
[1773675557429,3.82872069,93.789,93.694,3.58272834]
[1773675564432,3.82872069,93.789,93.697,3.63918118]
[1773675565624,3.82872069,93.789,93.7,3.64294827]
[1773675567437,3.82872069,93.789,93.7,12.2999495]
[1773675567735,3.82872069,93.789,93.707,3.64520319]
[1773675567938,3.82872069,93.789,93.709,3.64520319]
[1773675568538,3.82872069,93.789,93.712,3.64520319]
[1773675569038,3.82872069,93.789,93.713,33.54]
[1773675569437,3.82872069,93.789,93.714,3.64520319]
[1773675572140,3.82872069,93.789,93.706,33.54]
[1773675573938,3.82872069,93.789,93.706,37.18520319]
[1773675574140,3.67069214,93.802,93.713,3.64520319]
[1773675574343,3.67069214,93.802,93.715,3.64520319]
[1773675574838,3.67069214,93.789,93.73,3.638287]
[1773675575040,3.67069214,93.789,93.731,3.64520319]
[1773675575935,3.67069214,93.789,93.741,3.64520319]
[1773675578547,3.67069214,93.817,93.741,3.64520319]
[1773675579651,3.67069214,93.816,93.741,3.64520319]
[1773675580245,3.67069214,93.816,93.743,3.6781624]
[1773675580644,3.79535351,93.839,93.751,3.6781624]
[1773675580948,3.79535351,93.839,93.75,8.660907]
[1773675580949,3.79535351,93.839,93.753,3.6781624]
[1773675581546,3.79535351,93.839,93.758,3.6781624]
[1773675584446,3.79535351,93.855,93.77,12.3390694]
[1773675584650,3.79535351,93.855,93.771,3.6781624]
[1773675587748,3.79535351,93.855,93.772,33.54]
[1773675587955,3.79535351,93.855,93.773,3.6781624]
[1773675597764,3.79535351,93.855,93.723,31.95]
[1773675597765,3.605056,93.839,93.766,33.54]
[1773675598066,3.605056,93.819,93.736,3.53690226]
[1773675598764,3.605056,93.789,93.736,3.53690226]
[1773675600167,3.63869073,93.78,93.736,3.53690226]
[1773675600366,7.24374673,93.78,93.729,3.51406484]
[1773675601466,3.63869073,93.79,93.731,3.54159142]
[1773675602360,3.605056,93.797,93.741,3.53251043]
[1773675603668,3.605056,93.797,93.728,3.53671179]
[1773675607973,8.66095926,93.83,93.728,3.53671179]
[1773675607974,3.605056,93.829,93.728,3.53671179]
[1773675609372,3.605056,93.829,93.71,8.66095926]
[1773675609373,3.605056,93.829,93.73,3.55045022]
[1773675609774,19.175,93.857,93.729,33.54]
[1773675609775,6.14741871,93.894,93.82,8.66095926]
[1773675610074,6.14741871,93.894,93.821,33.54]
[1773675610264,6.14741871,93.894,93.809,33.54]
[1773675610469,6.14741871,93.894,93.8,8.66095926]
[1773675610670,6.14741871,93.894,93.807,33.54]
[1773675610870,6.14741871,93.894,93.761,31.95]
[1773675610871,6.14741871,93.894,93.78,8.66095926]
[1773675611069,6.14741871,93.894,93.8,8.66095926]
[1773675611373,6.14741871,93.894,93.761,31.95]
[1773675611374,6.14741871,93.894,93.82,8.66095926]
[1773675614470,6.14741871,93.894,93.81,8.66095926]
[1773675617875,6.14741871,93.894,93.83,8.66095926]
[1773675618076,6.13292834,93.911,93.83,8.66095926]
[1773675618373,6.13292834,93.911,93.85,8.66095926]
[1773675620472,6.13292834,93.911,93.82,8.66095926]
[1773675622481,6.13292834,93.911,93.86,8.66095926]
[1773675626175,6.13292834,93.911,93.841,33.54]
[1773675626370,6.13292834,93.911,93.82,8.66095926]
[1773675628872,6.13292834,93.911,93.83,8.64005335]
[1773675630477,6.13292834,93.911,93.813,33.54]
[1773675637484,6.13292834,93.911,93.83,8.64005335]
[1773675641585,6.13292834,93.911,93.81,8.64005335]
[1773675642988,6.13292834,93.911,93.83,8.64005335]
[1773675643687,6.11560859,93.879,93.736,19.41261024]
[1773675643882,6.11560859,93.877,93.75,8.64005335]
[1773675644083,6.11560859,93.877,93.751,33.54]
[1773675645589,6.12234392,93.875,93.752,33.54]
[1773675645790,6.12234392,93.859,93.752,33.54]
[1773675646983,6.12234392,93.859,93.75,8.64005335]
[1773675647181,6.12234392,93.859,93.751,33.54]
[1773675650395,6.12234392,93.859,93.75,8.64005335]
[1773675650787,6.12234392,93.859,93.746,33.54]
[1773675650993,6.12234392,93.859,93.74,8.64005335]
[1773675651194,6.12031522,93.849,93.74,8.64005335]
[1773675651694,6.12268229,93.847,93.74,8.64005335]
[1773675655392,6.12268229,93.847,93.734,33.54]
[1773675656390,6.10000104,93.845,93.724,33.56]
[1773675658893,6.10000104,93.845,93.724,52.762]
[1773675659199,6.10000104,93.845,93.74,8.64005335]
[1773675661896,6.10000104,93.845,93.742,19.198]
[1773675663601,6.10000104,93.845,93.743,33.56]
[1773675663998,6.10000104,93.845,93.742,19.198]
[1773675663999,6.10000104,93.845,93.76,8.64005335]
[1773675664202,6.10000104,93.845,93.744,33.56]
[1773675665114,6.10000104,93.845,93.75,8.64005335]
[1773675665699,6.10000104,93.845,93.744,33.56]
[1773675666103,6.0776523,93.829,93.723,33.56]
[1773675666404,8.64005335,93.83,93.721,19.202]
[1773675666405,6.04797756,93.827,93.724,33.56]
[1773675667501,8.64005335,93.81,93.71,8.64005335]
[1773675667700,8.64005335,93.81,93.7,19.207]
[1773675667701,6.04392987,93.809,93.7,19.207]
[1773675667902,6.04392987,93.807,93.701,33.56]
[1773675668403,6.04392987,93.807,93.7,19.207]
[1773675669203,6.04392987,93.807,93.701,33.56]
[1773675671007,6.04304467,93.806,93.701,33.56]
[1773675672709,6.04304467,93.806,93.69,8.64005335]
[1773675672710,6.04304467,93.806,93.655,19.41261024]
[1773675672711,6.04047467,93.789,93.622,19.41261024]
[1773675672910,106.549,93.839,93.593,26.00399706]
[1773675672911,6.04047467,93.749,93.65,8.64005335]
[1773675673105,6.04047467,93.749,93.67,8.64005335]
[1773675674715,6.04047467,93.749,93.669,33.56]
[1773675674915,6.04047467,93.749,93.638,33.56]
[1773675675108,6.01640281,93.729,93.67,3.64189517]
[1773675675716,6.01640281,93.729,93.66,3.64189517]
[1773675675909,6.01640281,93.729,93.67,3.64189517]
[1773675677013,6.01640281,93.729,93.644,33.56]
[1773675683117,6.01640281,93.729,93.63,8.67387683]
[1773675684217,6.01640281,93.729,93.63,42.23387683]
[1773675686122,6.01640281,93.729,93.635,33.56]
[1773675687324,6.01640281,93.729,93.62,8.67387683]
[1773675687525,6.01640281,93.729,93.633,1.85751573]
[1773675687822,6.10484202,93.726,93.633,1.85751573]
[1773675688018,6.10484202,93.726,93.611,33.56]
[1773675688214,6.10484202,93.696,93.59,8.67387683]
[1773675688813,6.10484202,93.696,93.6,8.68205642]
[1773675690323,6.10484202,93.696,93.59,8.68205642]
[1773675691115,6.10484202,93.696,93.591,33.56]
[1773675691315,6.10484202,93.696,93.6,1.85820011]
[1773675691514,6.09374785,93.694,93.6,1.85820011]
[1773675691719,6.09374785,93.684,93.591,33.56]
[1773675691925,6.09374785,93.678,93.591,33.56]
[1773675692321,6.09374785,93.678,93.58,1.85839361]
[1773675693224,6.09602278,93.676,93.58,1.85839361]
[1773675694624,6.08156053,93.675,93.58,1.85839361]
[1773675695025,6.08156053,93.675,93.58,10.54045003]
[1773675697131,6.08156053,93.675,93.58,1.85839361]
[1773675697633,6.16396136,93.655,93.54,20.75503317]
[1773675697832,6.16396136,93.653,93.551,1.85888002]
[1773675698532,6.16396136,93.653,93.56,8.68205642]
[1773675699230,6.16396136,93.653,93.58,8.68205642]
[1773675699531,6.16396136,93.653,93.56,8.68205642]
[1773675700927,6.16396136,93.653,93.58,8.68205642]
[1773675701230,6.16396136,93.653,93.581,33.56]
[1773675703634,6.16396136,93.653,93.566,33.56]
[1773675704130,6.16396136,93.653,93.567,33.56]
[1773675705432,6.16396136,93.653,93.571,19.233]
[1773675705731,31.95,93.678,93.572,33.56]
[1773675705937,6.26604349,93.676,93.572,33.56]
[1773675708637,31.95,93.667,93.572,33.56]
[1773675708831,6.32507112,93.666,93.572,33.56]
[1773675710242,6.32507112,93.666,93.59,8.68205642]
[1773675710433,33.56,93.68,93.592,19.229]
[1773675710737,6.30684518,93.679,93.593,33.56]
[1773675713734,6.31017085,93.678,93.594,33.56]
[1773675714340,6.31017085,93.676,93.594,33.56]
[1773675715443,6.31017085,93.676,93.57,8.68205642]
[1773675715635,33.56,93.675,93.582,33.56]
[1773675715835,6.3068832,93.674,93.582,33.56]
[1773675716137,6.3068832,93.674,93.57,8.68205642]
[1773675716138,6.3068832,93.674,93.583,33.56]
[1773675720944,6.3068832,93.674,93.59,8.68205642]
[1773675721139,6.3068832,93.674,93.591,33.56]
[1773675721746,23.08194611,93.735,93.593,106.828]
[1773675721941,23.08194611,93.735,93.64,8.68205642]
[1773675722144,23.08194611,93.735,93.641,33.56]
[1773675723342,23.08194611,93.735,93.642,33.56]
[1773675723936,23.08194611,93.735,93.66,8.68205642]
[1773675724139,23.08194611,93.735,93.661,33.56]
[1773675727944,23.0898287,93.779,93.66,8.68205642]
[1773675728249,23.0898287,93.777,93.661,33.56]
[1773675732445,33.56,93.778,93.661,33.56]
[1773675732446,33.56,93.778,93.664,106.747]
[1773675732642,23.02812608,93.794,93.664,106.747]
[1773675732643,23.02812608,93.794,93.72,8.68205642]
[1773675732849,23.02812608,93.794,93.74,3.63710831]
[1773675733147,23.02812608,93.794,93.75,3.63710831]
[1773675733347,33.54,93.837,93.76,3.63710831]
[1773675733348,23.02812608,93.819,93.76,3.63710831]
[1773675733656,23.02812608,93.819,93.77,3.63710831]
[1773675734346,22.97111733,93.836,93.728,19.201]
[1773675734554,22.98621249,93.829,93.76,3.63710831]
[1773675734754,22.98621249,93.829,93.74,8.65545125]
[1773675738645,22.98621249,93.829,93.76,8.65545125]
[1773675741651,22.98621249,93.829,93.74,8.65545125]
[1773675743950,22.98621249,93.829,93.76,8.65545125]
[1773675746754,22.98621249,93.829,93.74,8.65545125]
[1773675749058,22.98621249,93.829,93.729,33.54]
[1773675749658,22.98621249,93.829,93.72,8.65545125]
[1773675749854,22.98621249,93.829,93.721,33.54]
[1773675750063,22.98621249,93.829,93.722,19.202]
[1773675750264,22.98621249,93.829,93.723,33.54]
[1773675750853,22.98621249,93.829,93.73,8.65675751]
[1773675756059,22.98621249,93.829,93.732,19.2]
[1773675756264,22.98621249,93.829,93.75,8.65675751]
[1773675756660,22.98621249,93.829,93.751,33.54]
[1773675767276,23.16302802,93.827,93.751,33.54]
[1773675773276,23.16302802,93.827,93.714,19.58555832]
[1773675773474,23.15606787,93.825,93.724,33.56]
[1773675776181,23.15606787,93.825,93.727,19.58555832]
[1773675776884,3.63642916,93.81,93.75,3.63642916]
[1773675777178,23.21927567,93.809,93.75,3.63642916]
[1773675780976,23.17499012,93.799,93.74,3.63642916]
[1773675781180,23.17499012,93.799,93.75,3.63642916]
[1773675781582,23.17499012,93.799,93.74,3.63642916]
[1773675782178,23.17499012,93.799,93.73,3.63642916]
[1773675782381,23.17499012,93.799,93.74,3.63642916]
[1773675782683,23.17499012,93.799,93.73,3.63642916]
[1773675784184,23.17499012,93.799,93.74,3.63642916]
[1773675786486,23.25021253,93.789,93.73,3.63642916]
[1773675787482,23.26260303,93.779,93.722,33.56]
[1773675788081,23.26260303,93.779,93.72,3.63642916]
[1773675788288,23.26260303,93.769,93.71,3.63642916]
[1773675789300,23.26260303,93.769,93.69,19.209]
[1773675789301,23.26260303,93.769,93.7,3.63642916]
[1773675789494,23.26260303,93.769,93.71,3.63642916]
[1773675791398,23.26260303,93.769,93.73,3.63642916]
[1773675793099,23.26260303,93.769,93.72,3.63642916]
[1773675794699,23.26260303,93.769,93.715,33.56]
[1773675797195,23.26260303,93.769,93.72,3.63642916]
[1773675800904,23.26260303,93.769,93.71,3.63642916]
[1773675801196,23.26260303,93.769,93.682,19.211]
[1773675801197,23.3164532,93.749,93.697,33.56]
[1773675801404,23.3164532,93.749,93.696,33.56]
[1773675802505,23.33345926,93.739,93.68,3.63642916]
[1773675802805,23.33345926,93.739,93.681,33.56]
[1773675803100,23.33345926,93.729,93.681,33.56]
[1773675804899,23.32025315,93.749,93.681,33.56]
[1773675805100,23.32025315,93.749,93.69,3.63642916]
[1773675807407,23.32025315,93.749,93.681,33.56]
[1773675807607,23.33961045,93.739,93.681,33.56]
[1773675808909,23.33961045,93.739,93.69,3.63642916]
[1773675810406,23.33961045,93.739,93.681,33.56]
[1773675810802,23.42582124,93.729,93.681,33.56]
[1773675811106,23.42582124,93.729,93.669,33.56]
[1773675812713,23.42582124,93.729,93.67,3.63642916]
[1773675812913,23.42582124,93.729,93.669,33.56]
[1773675815722,19.194,93.762,93.652,33.56]
[1773675815723,23.41347931,93.709,93.652,33.56]
[1773675815921,23.41347931,93.709,93.653,33.56]
[1773675816117,23.41347931,93.709,93.66,3.64307973]
[1773675820121,23.41347931,93.709,93.67,3.64307973]
[1773675820319,23.41347931,93.709,93.68,3.64307973]
[1773675820523,23.41347931,93.709,93.653,33.56]
[1773675820524,23.41347931,93.709,93.67,3.64307973]
[1773675829230,23.44740794,93.746,93.69,3.64307973]
[1773675829431,23.44740794,93.746,93.7,3.64307973]
[1773675830430,23.44740794,93.746,93.71,3.64307973]
[1773675830626,23.44740794,93.746,93.7,3.64307973]
[1773675831934,23.44740794,93.746,93.71,3.64307973]
[1773675833036,23.44740794,93.746,93.704,33.56]
[1773675834630,6.63836366,93.739,93.683,33.56]
[1773675834827,6.63836366,93.729,93.67,3.64307973]
[1773675837536,6.63836366,93.729,93.69,3.64307973]
[1773675838240,6.63836366,93.729,93.68,3.64307973]
[1773675841941,6.63836366,93.729,93.667,33.56]
[1773675842140,6.63836366,93.729,93.68,3.64307973]
[1773675842645,6.63836366,93.729,93.67,3.64307973]
[1773675842838,6.51362307,93.719,93.667,33.56]
[1773675843244,6.51362307,93.719,93.65,3.64307973]
[1773675843245,6.51362307,93.719,93.656,33.56]
[1773675844646,6.49092305,93.709,93.656,33.56]
[1773675846446,6.49092305,93.709,93.622,32.0]
[1773675846447,6.51982664,93.699,93.641,0.11168897]
[1773675846748,6.51982664,93.699,93.65,3.64307973]
[1773675847144,6.51982664,93.699,93.641,0.11168897]
[1773675849352,6.51982664,93.699,93.65,3.81401282]
[1773675850355,6.52101965,93.719,93.671,0.20763811]
[1773675850654,6.52101965,93.719,93.626,19.72200097]
[1773675850655,6.55596069,93.739,93.681,0.17612318]
[1773675851557,6.55858718,93.729,93.678,33.56]
[1773675852860,6.60923311,93.719,93.678,33.56]
[1773675860066,6.60923311,93.719,93.681,0.22839467]
[1773675860667,6.60923311,93.719,93.678,33.56]
[1773675862360,6.58485063,93.734,93.679,0.20045709]
[1773675863973,6.58485063,93.734,93.68,3.64307973]
[1773675864767,6.58485063,93.734,93.681,0.17621877]
[1773675864972,6.58485063,93.734,93.635,32.0]
[1773675864973,6.58485063,93.769,93.711,0.17621877]